[Event "*** Titled Tuesday Blitz"]
[Site "Chess.com"]
[Date "2018.09.04"]
[Round "9"]
[White "Blitzstream"]
[Black "NateSolon"]
[Result "1-0"]
[WhiteElo "2590"]
[BlackElo "2501"]
[TimeControl "180+2"]
[EndTime "15:40:00 PDT"]
[Termination "Blitzstream won by resignation"]

1. g4 {[%clk 0:03:01.9]} 1... d5 {[%clk 0:02:58.3]} 2. Bg2 {[%clk 0:03:02.3]}
2... c6 {[%clk 0:02:58.9]} 3. g5 {[%clk 0:03:02.5]} 3... e5 {[%clk 0:02:59.2]}
4. d4 {[%clk 0:03:01.5]} 4... exd4 {[%clk 0:02:56.4]} 5. Qxd4 {[%clk 0:03:02.2]}
5... Ne7 {[%clk 0:02:43.4]} 6. e4 {[%clk 0:02:56.1]} 6... dxe4 {[%clk 0:02:34]}
7. Qxd8+ {[%clk 0:02:53.8]} 7... Kxd8 {[%clk 0:02:35.9]} 8. Nc3 {[%clk
0:02:52.8]} 8... Nd5 {[%clk 0:02:14.1]} 9. Nxe4 {[%clk 0:02:48.1]} 9... Nb4
{[%clk 0:02:15]} 10. Kd1 {[%clk 0:02:24.6]} 10... Bf5 {[%clk 0:02:06.1]} 11. a3
{[%clk 0:02:24.2]} 11... Nd5 {[%clk 0:02:06.1]} 12. c4 {[%clk 0:02:24.4]} 12...
Nc7 {[%clk 0:01:55.5]} 13. Ne2 {[%clk 0:02:10.4]} 13... Ne6 {[%clk 0:01:51.5]}
14. N2g3 {[%clk 0:02:11.3]} 14... Bxe4 {[%clk 0:01:27.8]} 15. Nxe4 {[%clk
0:02:13.2]} 15... Nd7 {[%clk 0:01:27.4]} 16. Be3 {[%clk 0:02:11.9]} 16... Kc7
{[%clk 0:01:21.9]} 17. Kc2 {[%clk 0:02:11]} 17... a5 {[%clk 0:01:18.3]} 18. Rad1
{[%clk 0:01:58.6]} 18... Ndc5 {[%clk 0:01:07.1]} 19. Nc3 {[%clk 0:01:45.9]}
19... Be7 {[%clk 0:00:58.9]} 20. f4 {[%clk 0:01:44.6]} 20... g6 {[%clk
0:00:59.8]} 21. b4 {[%clk 0:01:22.7]} 21... axb4 {[%clk 0:00:59.8]} 22. axb4
{[%clk 0:01:24.6]} 22... Na4 {[%clk 0:00:49.3]} 23. Nd5+ {[%clk 0:00:57.6]}
23... cxd5 {[%clk 0:00:47.7]} 24. cxd5 {[%clk 0:00:59.5]} 24... Nd8 {[%clk
0:00:32.1]} 25. Kb3 {[%clk 0:00:56.5]} 25... Bd6 {[%clk 0:00:15.5]} 26. Rc1+
{[%clk 0:00:50.5]} 26... Kb8 {[%clk 0:00:11.3]} 27. Bh3 {[%clk 0:00:51.3]} 27...
b5 {[%clk 0:00:10.1]} 28. Bd7 {[%clk 0:00:48.7]} 28... Nb7 {[%clk 0:00:04.5]}
29. Bxb5 {[%clk 0:00:45.9]} 29... Nb2 {[%clk 0:00:06]} 30. Kxb2 {[%clk 0:00:43]}
30... Bxb4 {[%clk 0:00:07.4]} 31. Bc6 {[%clk 0:00:39.4]} 31... Ba3+ {[%clk
0:00:08.4]} 32. Kb3 {[%clk 0:00:39.3]} 32... Bxc1 {[%clk 0:00:10.3]} 33. Rxc1
{[%clk 0:00:40.3]} 33... Ra6 {[%clk 0:00:08.2]} 34. Bd4 {[%clk 0:00:40.3]} 34...
Rd8 {[%clk 0:00:08.5]} 35. Be5+ {[%clk 0:00:41]} 35... Nd6 {[%clk 0:00:09.8]}
36. Kb4 {[%clk 0:00:37.8]} 36... Ra2 {[%clk 0:00:09.1]} 37. Kc5 {[%clk
0:00:36.9]} 37... Kc7 {[%clk 0:00:10.4]} 38. Rb1 {[%clk 0:00:35.4]} 38... Ra5+
{[%clk 0:00:11.4]} 39. Kd4 {[%clk 0:00:32.5]} 39... Ra4+ {[%clk 0:00:12.7]} 40.
Bxa4 {[%clk 0:00:32.9]} 1-0

[Event "*** Titled Tuesday Blitz"]
[Site "Chess.com"]
[Date "2018.09.04"]
[Round "9"]
[White "aquaticpineapples"]
[Black "chessmaxusa"]
[Result "0-1"]
[WhiteElo "2010"]
[BlackElo "2491"]
[TimeControl "180+2"]
[EndTime "15:40:06 PDT"]
[Termination "chessmaxusa won by resignation"]

1. d4 {[%clk 0:03:01.9]} 1... c6 {[%clk 0:03:00.7]} 2. Nf3 {[%clk 0:03:02.2]}
2... d5 {[%clk 0:03:02.6]} 3. e3 {[%clk 0:03:03.3]} 3... Nf6 {[%clk 0:03:04.5]}
4. Bd3 {[%clk 0:03:03.6]} 4... Bg4 {[%clk 0:03:05.5]} 5. h3 {[%clk 0:03:04.5]}
5... Bh5 {[%clk 0:03:05.1]} 6. c4 {[%clk 0:03:05.2]} 6... e6 {[%clk 0:03:06.3]}
7. Qc2 {[%clk 0:03:05.8]} 7... Nbd7 {[%clk 0:03:07.2]} 8. b3 {[%clk 0:03:05.3]}
8... Bg6 {[%clk 0:03:07.2]} 9. Bxg6 {[%clk 0:03:02.6]} 9... hxg6 {[%clk
0:03:07.8]} 10. Nc3 {[%clk 0:03:03.1]} 10... Be7 {[%clk 0:03:08.5]} 11. Bb2
{[%clk 0:02:59.2]} 11... a5 {[%clk 0:03:08.8]} 12. O-O {[%clk 0:02:57.2]} 12...
Qb6 {[%clk 0:03:01.8]} 13. Rfe1 {[%clk 0:02:44.8]} 13... Qa6 {[%clk 0:02:56.7]}
14. cxd5 {[%clk 0:02:23]} 14... cxd5 {[%clk 0:02:56.8]} 15. Qe2 {[%clk 0:02:21]}
15... O-O {[%clk 0:02:51.3]} 16. Rac1 {[%clk 0:02:11.8]} 16... Rfc8 {[%clk
0:02:38.3]} 17. Qb5 {[%clk 0:01:58.4]} 17... Nb8 {[%clk 0:02:24.2]} 18. Qxa6
{[%clk 0:01:53.4]} 18... bxa6 {[%clk 0:02:21.2]} 19. Na4 {[%clk 0:01:51.3]}
19... Nbd7 {[%clk 0:02:15.6]} 20. Ne5 {[%clk 0:01:41.6]} 20... Nxe5 {[%clk
0:02:13.4]} 21. dxe5 {[%clk 0:01:41.9]} 21... Nd7 {[%clk 0:02:14.3]} 22. Bd4
{[%clk 0:01:39.4]} 22... Ba3 {[%clk 0:02:13.1]} 23. Rc3 {[%clk 0:01:33.6]} 23...
Bb4 {[%clk 0:02:05.9]} 24. Rxc8+ {[%clk 0:01:31]} 24... Rxc8 {[%clk 0:02:07.8]}
25. Re2 {[%clk 0:01:29.5]} 25... Rc1+ {[%clk 0:02:02.2]} 26. Kh2 {[%clk
0:01:29.9]} 26... f6 {[%clk 0:02:03]} 27. exf6 {[%clk 0:01:21.3]} 27... gxf6
{[%clk 0:02:03.5]} 28. Nb6 {[%clk 0:01:11.9]} 28... Ne5 {[%clk 0:01:44.4]} 29.
f4 {[%clk 0:01:07]} 29... Nf7 {[%clk 0:01:27.5]} 30. Bxf6 {[%clk 0:01:07.5]}
30... Nd6 {[%clk 0:01:20.1]} 31. Nd7 {[%clk 0:01:00.1]} 31... Ne4 {[%clk
0:01:14.8]} 32. Bd4 {[%clk 0:00:43.5]} 32... Nd6 {[%clk 0:01:02.9]} 33. Nb8
{[%clk 0:00:35.3]} 33... Nf5 {[%clk 0:00:59.7]} 34. Nxa6 {[%clk 0:00:33.1]}
34... Bd6 {[%clk 0:00:58.7]} 35. g3 {[%clk 0:00:29]} 35... Rc6 {[%clk
0:00:56.9]} 36. Nc5 {[%clk 0:00:19.4]} 36... Bxc5 {[%clk 0:00:51.4]} 37. Rc2
{[%clk 0:00:20.3]} 37... Bxd4 {[%clk 0:00:46]} 38. Rxc6 {[%clk 0:00:21.2]} 38...
Bxe3 {[%clk 0:00:46.9]} 39. Rxe6 {[%clk 0:00:21.3]} 39... Kf7 {[%clk 0:00:46.4]}
40. Rc6 {[%clk 0:00:18.5]} 40... d4 {[%clk 0:00:40.5]} 41. g4 {[%clk 0:00:19.4]}
41... Ne7 {[%clk 0:00:38.4]} 42. Kg2 {[%clk 0:00:15.4]} 42... Nxc6 {[%clk
0:00:38.6]} 0-1

[Event "*** Titled Tuesday Blitz"]
[Site "Chess.com"]
[Date "2018.09.04"]
[Round "9"]
[White "PaulfromSPb"]
[Black "TST2014"]
[Result "1/2-1/2"]
[WhiteElo "2617"]
[BlackElo "2510"]
[TimeControl "180+2"]
[EndTime "15:40:18 PDT"]
[Termination "Game drawn - insufficient material"]

1. d4 {[%clk 0:03:01.9]} 1... Nf6 {[%clk 0:02:52.8]} 2. Bg5 {[%clk 0:03:00.3]}
2... d5 {[%clk 0:02:50.5]} 3. Nd2 {[%clk 0:03:00.4]} 3... c5 {[%clk 0:02:48.9]}
4. c3 {[%clk 0:02:59.4]} 4... Nc6 {[%clk 0:02:49]} 5. e3 {[%clk 0:03:00]} 5...
e6 {[%clk 0:02:47.7]} 6. Bd3 {[%clk 0:03:00.3]} 6... Be7 {[%clk 0:02:48.1]} 7.
f4 {[%clk 0:03:00.7]} 7... b6 {[%clk 0:02:47.5]} 8. Ngf3 {[%clk 0:03:00.6]} 8...
Bb7 {[%clk 0:02:47.9]} 9. Qe2 {[%clk 0:02:59.3]} 9... Ne4 {[%clk 0:02:48.6]} 10.
Nxe4 {[%clk 0:02:53.7]} 10... dxe4 {[%clk 0:02:48.2]} 11. Bxe4 {[%clk
0:02:54.3]} 11... cxd4 {[%clk 0:02:39.8]} 12. exd4 {[%clk 0:02:54]} 12... O-O
{[%clk 0:02:34.7]} 13. Ne5 {[%clk 0:02:38.3]} 13... Nxe5 {[%clk 0:02:23.5]} 14.
Bxb7 {[%clk 0:02:32.3]} 14... Rb8 {[%clk 0:02:21.7]} 15. Bxe7 {[%clk 0:02:29.6]}
15... Qxe7 {[%clk 0:02:20.3]} 16. Be4 {[%clk 0:02:30.2]} 16... Ng6 {[%clk
0:02:16.7]} 17. O-O {[%clk 0:02:30.5]} 17... b5 {[%clk 0:02:11.3]} 18. a3 {[%clk
0:02:30.4]} 18... a5 {[%clk 0:02:11.5]} 19. Bd3 {[%clk 0:02:18]} 19... b4 {[%clk
0:02:10.3]} 20. axb4 {[%clk 0:02:17.1]} 20... axb4 {[%clk 0:02:11.1]} 21. f5
{[%clk 0:02:16.5]} 21... exf5 {[%clk 0:02:08]} 22. Qxe7 {[%clk 0:02:17.3]} 22...
Nxe7 {[%clk 0:02:08.5]} 23. Bxf5 {[%clk 0:02:18.5]} 23... bxc3 {[%clk
0:02:07.7]} 24. bxc3 {[%clk 0:02:19]} 24... Nd5 {[%clk 0:02:05.4]} 25. Rac1
{[%clk 0:02:17.4]} 25... Ne3 {[%clk 0:02:05.1]} 26. Rf3 {[%clk 0:02:17.2]} 26...
Nxf5 {[%clk 0:01:54.2]} 27. Rxf5 {[%clk 0:02:17.8]} 27... Rfc8 {[%clk 0:01:52]}
28. Rf3 {[%clk 0:02:03.8]} 28... Rb2 {[%clk 0:01:48.2]} 29. Rf2 {[%clk
0:02:01.6]} 29... Rb3 {[%clk 0:01:45.5]} 30. Rfc2 {[%clk 0:02:02.5]} 30... f5
{[%clk 0:01:38.9]} 31. Kf2 {[%clk 0:02:01.3]} 31... Kf7 {[%clk 0:01:39.3]} 32.
Ke3 {[%clk 0:02:00.3]} 32... Ke6 {[%clk 0:01:40.7]} 33. Kd3 {[%clk 0:02:00.5]}
33... Kd5 {[%clk 0:01:42.2]} 34. Re1 {[%clk 0:02:00.3]} 34... g6 {[%clk
0:01:41.7]} 35. Re7 {[%clk 0:01:59.8]} 35... h5 {[%clk 0:01:41.3]} 36. Rg7
{[%clk 0:01:59.8]} 36... Rb1 {[%clk 0:01:31.7]} 37. Rxg6 {[%clk 0:01:57.7]}
37... Rd1+ {[%clk 0:01:30.8]} 38. Rd2 {[%clk 0:01:58.4]} 38... Rh1 {[%clk
0:01:27.3]} 39. Rg5 {[%clk 0:01:57.9]} 39... Rxh2 {[%clk 0:01:27.8]} 40. Rxf5+
{[%clk 0:01:58.7]} 40... Ke6 {[%clk 0:01:29.4]} 41. Re5+ {[%clk 0:01:57.5]}
41... Kd6 {[%clk 0:01:30]} 42. c4 {[%clk 0:01:58.6]} 42... h4 {[%clk 0:01:29.7]}
43. c5+ {[%clk 0:01:59.5]} 43... Kd7 {[%clk 0:01:30.5]} 44. Rh5 {[%clk 0:01:59]}
44... Rg8 {[%clk 0:01:27.6]} 45. Kc4 {[%clk 0:01:57.5]} 45... Rg4 {[%clk
0:01:24.2]} 46. Kd5 {[%clk 0:01:54.8]} 46... Rg7 {[%clk 0:01:16.4]} 47. c6+
{[%clk 0:01:53.5]} 47... Kc7 {[%clk 0:01:17]} 48. Kc5 {[%clk 0:01:54.8]} 48...
Rh1 {[%clk 0:01:16.9]} 49. d5 {[%clk 0:01:52.6]} 49... Rc1+ {[%clk 0:01:18.2]}
50. Kd4 {[%clk 0:01:53.2]} 50... Rg4+ {[%clk 0:01:18.2]} 51. Ke5 {[%clk
0:01:54]} 51... Re1+ {[%clk 0:01:19.7]} 52. Kf5 {[%clk 0:01:54.7]} 52... Rg7
{[%clk 0:01:16.8]} 53. Rxh4 {[%clk 0:01:54.3]} 53... Rf7+ {[%clk 0:01:17.6]} 54.
Kg6 {[%clk 0:01:53.9]} 54... Ref1 {[%clk 0:01:15.9]} 55. Rh7 {[%clk 0:01:52.4]}
55... Rf6+ {[%clk 0:01:16.2]} 56. Kg5 {[%clk 0:01:53.4]} 56... Rf5+ {[%clk
0:01:16.7]} 57. Kg4 {[%clk 0:01:54.5]} 57... Rf4+ {[%clk 0:01:17.5]} 58. Kg3
{[%clk 0:01:55.6]} 58... Kd6 {[%clk 0:01:09.5]} 59. Rxf7 {[%clk 0:01:55.7]}
59... Rxf7 {[%clk 0:01:11]} 60. Kh4 {[%clk 0:01:56.8]} 60... Rg7 {[%clk
0:01:07.5]} 61. g4 {[%clk 0:01:57.5]} 61... Rg8 {[%clk 0:01:08.6]} 62. g5 {[%clk
0:01:58.1]} 62... Rh8+ {[%clk 0:01:09]} 63. Kg4 {[%clk 0:01:58.3]} 63... Rg8
{[%clk 0:01:09.4]} 64. Kf5 {[%clk 0:01:59.1]} 64... Rf8+ {[%clk 0:01:10.3]} 65.
Kg6 {[%clk 0:02:00.1]} 65... Rg8+ {[%clk 0:01:10.1]} 66. Kf6 {[%clk 0:02:01.1]}
66... Rf8+ {[%clk 0:01:10.9]} 67. Kg7 {[%clk 0:02:02]} 67... Rf2 {[%clk
0:01:11.5]} 68. g6 {[%clk 0:02:03.1]} 68... Rxd2 {[%clk 0:01:11.9]} 69. Kf7
{[%clk 0:02:02.1]} 69... Rxd5 {[%clk 0:01:12.1]} 70. g7 {[%clk 0:02:03.1]} 70...
Rf5+ {[%clk 0:01:13.1]} 71. Kg6 {[%clk 0:01:59.5]} 71... Rf1 {[%clk 0:01:12.9]}
72. Kh7 {[%clk 0:02:00]} 72... Rh1+ {[%clk 0:01:13.6]} 73. Kg6 {[%clk
0:02:00.6]} 73... Rg1+ {[%clk 0:01:10.8]} 74. Kf7 {[%clk 0:02:01.3]} 74... Kxc6
{[%clk 0:01:09.8]} 75. g8=Q {[%clk 0:02:02]} 75... Rxg8 {[%clk 0:01:10.8]} 76.
Kxg8 {[%clk 0:02:03.2]} 1/2-1/2

[Event "*** Titled Tuesday Blitz"]
[Site "Chess.com"]
[Date "2018.09.04"]
[Round "9"]
[White "Manukyan_Artak"]
[Black "BlackBoarder"]
[Result "1-0"]
[WhiteElo "2319"]
[BlackElo "2441"]
[TimeControl "180+2"]
[EndTime "15:40:21 PDT"]
[Termination "Manukyan_Artak won on time"]

1. e4 {[%clk 0:03:01.9]} 1... e6 {[%clk 0:03:00.4]} 2. d4 {[%clk 0:03:02.4]}
2... d5 {[%clk 0:03:01.5]} 3. e5 {[%clk 0:03:03.3]} 3... c5 {[%clk 0:03:02.4]}
4. c3 {[%clk 0:03:03.9]} 4... Nc6 {[%clk 0:03:03.6]} 5. Nf3 {[%clk 0:03:04.2]}
5... Bd7 {[%clk 0:03:04.4]} 6. a3 {[%clk 0:03:04.9]} 6... f6 {[%clk 0:03:04.9]}
7. Bd3 {[%clk 0:03:01.9]} 7... fxe5 {[%clk 0:03:04.4]} 8. Nxe5 {[%clk
0:03:02.4]} 8... Nxe5 {[%clk 0:03:03.3]} 9. dxe5 {[%clk 0:03:03.3]} 9... g6
{[%clk 0:02:54.4]} 10. h4 {[%clk 0:02:58.2]} 10... Qc7 {[%clk 0:02:55]} 11. f4
{[%clk 0:02:50.3]} 11... O-O-O {[%clk 0:02:52]} 12. b4 {[%clk 0:02:46]} 12...
Ne7 {[%clk 0:02:27.3]} 13. Be3 {[%clk 0:02:33.6]} 13... Nf5 {[%clk 0:02:25.6]}
14. Bf2 {[%clk 0:02:27.1]} 14... d4 {[%clk 0:01:45.7]} 15. Bxf5 {[%clk
0:02:19.6]} 15... gxf5 {[%clk 0:01:41]} 16. cxd4 {[%clk 0:02:12.4]} 16... Bc6
{[%clk 0:01:20]} 17. O-O {[%clk 0:01:57.5]} 17... cxd4 {[%clk 0:01:17.4]} 18.
Nd2 {[%clk 0:01:54.1]} 18... Bh6 {[%clk 0:00:56.5]} 19. Rc1 {[%clk 0:01:38.1]}
19... Rhg8 {[%clk 0:00:33.4]} 20. Nf3 {[%clk 0:01:26.4]} 20... Kb8 {[%clk
0:00:23.9]} 21. b5 {[%clk 0:01:23.6]} 21... Qg7 {[%clk 0:00:23.3]} 22. Ng5
{[%clk 0:01:21.5]} 22... Bd5 {[%clk 0:00:18.7]} 23. Qxd4 {[%clk 0:01:16.4]}
23... b6 {[%clk 0:00:19.8]} 24. Qa4 {[%clk 0:01:05.4]} 24... Qb7 {[%clk
0:00:20.3]} 25. Rc6 {[%clk 0:01:03.5]} 25... Bf8 {[%clk 0:00:15.7]} 26. Rfc1
{[%clk 0:00:59.9]} 26... Rg7 {[%clk 0:00:06.5]} 27. Qd1 {[%clk 0:00:39.2]} 27...
h6 {[%clk 0:00:06]} 28. Nf3 {[%clk 0:00:27]} 28... Re8 {[%clk 0:00:03.7]} 29.
Kf1 {[%clk 0:00:25.7]} 29... Rd7 {[%clk 0:00:04.4]} 30. Qe2 {[%clk 0:00:26]}
30... Red8 {[%clk 0:00:05.4]} 31. Nd4 {[%clk 0:00:26]} 31... Bxa3 {[%clk
0:00:05.9]} 32. Nxe6 {[%clk 0:00:21.7]} 32... Bxc1 {[%clk 0:00:05]} 33. Nxd8
{[%clk 0:00:21.9]} 33... Rxd8 {[%clk 0:00:04.8]} 34. Rd6 {[%clk 0:00:20.8]}
34... Rxd6 {[%clk 0:00:04.9]} 35. exd6 {[%clk 0:00:22]} 35... Bxf4 {[%clk
0:00:05.6]} 36. Qe8+ {[%clk 0:00:21.5]} 36... Qc8 {[%clk 0:00:06.8]} 37. d7
{[%clk 0:00:22.8]} 37... Bc4+ {[%clk 0:00:03.3]} 38. Kg1 {[%clk 0:00:22.1]} 1-0

[Event "*** Titled Tuesday Blitz"]
[Site "Chess.com"]
[Date "2018.09.04"]
[Round "9"]
[White "NikolaGry"]
[Black "Drags95"]
[Result "0-1"]
[WhiteElo "2604"]
[BlackElo "2666"]
[TimeControl "180+2"]
[EndTime "15:40:28 PDT"]
[Termination "Drags95 won on time"]

1. e4 {[%clk 0:03:01.9]} 1... e5 {[%clk 0:03:00.3]} 2. Nf3 {[%clk 0:03:02.4]}
2... Nc6 {[%clk 0:03:01.9]} 3. Bb5 {[%clk 0:03:01.6]} 3... a6 {[%clk 0:03:02]}
4. Bxc6 {[%clk 0:03:01.9]} 4... dxc6 {[%clk 0:03:02.4]} 5. d4 {[%clk 0:02:57.6]}
5... exd4 {[%clk 0:03:01.8]} 6. Qxd4 {[%clk 0:02:58.4]} 6... Qxd4 {[%clk
0:03:02.2]} 7. Nxd4 {[%clk 0:02:59.3]} 7... Bd7 {[%clk 0:02:58]} 8. Nc3 {[%clk
0:02:52]} 8... O-O-O {[%clk 0:02:59]} 9. Be3 {[%clk 0:02:49.4]} 9... Nf6 {[%clk
0:02:59.3]} 10. f3 {[%clk 0:02:47.1]} 10... c5 {[%clk 0:02:59.1]} 11. Nde2
{[%clk 0:02:45.9]} 11... b6 {[%clk 0:03:00.2]} 12. O-O-O {[%clk 0:02:42.6]}
12... Bd6 {[%clk 0:02:53.6]} 13. Bf4 {[%clk 0:02:40.4]} 13... Bxf4+ {[%clk
0:02:51.9]} 14. Nxf4 {[%clk 0:02:40.8]} 14... Bc6 {[%clk 0:02:53.3]} 15. Rxd8+
{[%clk 0:02:39.3]} 15... Rxd8 {[%clk 0:02:55.2]} 16. Rd1 {[%clk 0:02:39.2]}
16... Re8 {[%clk 0:02:56.2]} 17. h4 {[%clk 0:02:26.1]} 17... h6 {[%clk
0:02:55.8]} 18. h5 {[%clk 0:02:26.6]} 18... b5 {[%clk 0:02:49.2]} 19. Nce2
{[%clk 0:02:14.5]} 19... c4 {[%clk 0:02:31.9]} 20. a3 {[%clk 0:01:36.4]} 20...
Bd7 {[%clk 0:02:29.4]} 21. g4 {[%clk 0:01:14.7]} 21... c6 {[%clk 0:02:22.6]} 22.
Ng3 {[%clk 0:01:13.4]} 22... Kc7 {[%clk 0:02:24]} 23. Nf5 {[%clk 0:00:50.3]}
23... Bxf5 {[%clk 0:02:25]} 24. gxf5 {[%clk 0:00:51.4]} 24... Re5 {[%clk
0:02:26.1]} 25. Rg1 {[%clk 0:00:48.7]} 25... Ne8 {[%clk 0:02:27.3]} 26. Kd2
{[%clk 0:00:46.2]} 26... a5 {[%clk 0:02:27.9]} 27. Ke3 {[%clk 0:00:45.2]} 27...
Kd6 {[%clk 0:02:28.6]} 28. Kd4 {[%clk 0:00:40.7]} 28... Re7 {[%clk 0:02:05.2]}
29. f6 {[%clk 0:00:22.5]} 29... gxf6 {[%clk 0:01:56.5]} 30. Rg8 {[%clk
0:00:22.8]} 30... f5 {[%clk 0:01:31.4]} 31. Rh8 {[%clk 0:00:18.8]} 31... c5+
{[%clk 0:01:27.2]} 32. Ke3 {[%clk 0:00:19.2]} 32... fxe4 {[%clk 0:01:28.2]} 33.
fxe4 {[%clk 0:00:19.9]} 33... f5 {[%clk 0:01:21.7]} 34. Rxh6+ {[%clk 0:00:18.3]}
34... Kd7 {[%clk 0:01:23.2]} 35. Nd5 {[%clk 0:00:15.7]} 35... Rxe4+ {[%clk
0:01:23.7]} 36. Kf3 {[%clk 0:00:16.8]} 36... Rh4 {[%clk 0:01:13.4]} 37. Ne3
{[%clk 0:00:14]} 37... Rh2 {[%clk 0:01:02.1]} 38. Rh7+ {[%clk 0:00:12.6]} 38...
Ke6 {[%clk 0:01:01.5]} 39. Rh6+ {[%clk 0:00:11.1]} 39... Ke5 {[%clk 0:01:00.8]}
40. Rb6 {[%clk 0:00:11.2]} 40... Nd6 {[%clk 0:00:58.1]} 41. a4 {[%clk
0:00:11.4]} 41... bxa4 {[%clk 0:00:56.5]} 42. Rc6 {[%clk 0:00:12.3]} 42... Rh3+
{[%clk 0:00:51.8]} 43. Ke2 {[%clk 0:00:11.3]} 43... Ne4 {[%clk 0:00:47.3]} 44.
Ra6 {[%clk 0:00:06.3]} 44... f4 {[%clk 0:00:38.7]} 45. Nxc4+ {[%clk 0:00:06.9]}
45... Kd4 {[%clk 0:00:40.2]} 46. Nxa5 {[%clk 0:00:07.7]} 46... f3+ {[%clk
0:00:40.5]} 0-1

[Event "*** Titled Tuesday Blitz"]
[Site "Chess.com"]
[Date "2018.09.04"]
[Round "9"]
[White "Schachmalanders"]
[Black "RiskyDecision"]
[Result "1-0"]
[WhiteElo "2396"]
[BlackElo "2410"]
[TimeControl "180+2"]
[EndTime "15:40:28 PDT"]
[Termination "Schachmalanders won on time"]

1. e4 {[%clk 0:03:01.9]} 1... e6 {[%clk 0:03:00.4]} 2. d4 {[%clk 0:03:02.6]}
2... d5 {[%clk 0:03:01.2]} 3. exd5 {[%clk 0:03:04.5]} 3... exd5 {[%clk
0:03:01.9]} 4. Nf3 {[%clk 0:03:05.6]} 4... Bd6 {[%clk 0:03:02.2]} 5. Bd3 {[%clk
0:03:06.5]} 5... Ne7 {[%clk 0:02:58.1]} 6. O-O {[%clk 0:03:07.5]} 6... Nbc6
{[%clk 0:02:56.8]} 7. c3 {[%clk 0:03:07]} 7... Bg4 {[%clk 0:02:50.8]} 8. Re1
{[%clk 0:03:08.1]} 8... Qd7 {[%clk 0:02:50.7]} 9. Nbd2 {[%clk 0:03:09.6]} 9...
O-O-O {[%clk 0:02:39.5]} 10. Nf1 {[%clk 0:03:10.2]} 10... f6 {[%clk 0:02:30.8]}
11. Ne3 {[%clk 0:03:09.8]} 11... Be6 {[%clk 0:02:28.2]} 12. b4 {[%clk
0:03:09.4]} 12... Ng6 {[%clk 0:02:20.7]} 13. a4 {[%clk 0:03:00.4]} 13... Nf4
{[%clk 0:02:16.3]} 14. Bf1 {[%clk 0:03:01.1]} 14... g5 {[%clk 0:02:16.2]} 15. a5
{[%clk 0:02:59.1]} 15... Ne7 {[%clk 0:02:14.9]} 16. b5 {[%clk 0:02:56.9]} 16...
Neg6 {[%clk 0:01:59.1]} 17. Ba3 {[%clk 0:02:55.3]} 17... Nh4 {[%clk 0:01:51.1]}
18. g3 {[%clk 0:02:48]} 18... Nh3+ {[%clk 0:01:34.3]} 19. Bxh3 {[%clk
0:02:47.1]} 19... Nxf3+ {[%clk 0:01:35.3]} 20. Qxf3 {[%clk 0:02:47.5]} 20...
Bxh3 {[%clk 0:01:36.8]} 21. a6 {[%clk 0:02:45.1]} 21... Be6 {[%clk 0:01:07.6]}
22. axb7+ {[%clk 0:02:43.8]} 22... Kb8 {[%clk 0:01:08.8]} 23. Qe2 {[%clk
0:01:21]} 23... Kxb7 {[%clk 0:00:52.9]} 24. Bc5 {[%clk 0:01:15.5]} 24... Ra8
{[%clk 0:00:50.8]} 25. Qa2 {[%clk 0:01:13.5]} 25... a5 {[%clk 0:00:37.4]} 26.
bxa6+ {[%clk 0:01:13.9]} 26... Kc8 {[%clk 0:00:38.9]} 27. Qb3 {[%clk 0:01:01.2]}
27... Qc6 {[%clk 0:00:35.3]} 28. Bxd6 {[%clk 0:01:00.3]} 28... cxd6 {[%clk
0:00:33.6]} 29. Reb1 {[%clk 0:00:54.6]} 29... Kc7 {[%clk 0:00:22.4]} 30. a7
{[%clk 0:00:51.4]} 30... Rhc8 {[%clk 0:00:19.6]} 31. Qc2 {[%clk 0:00:43]} 31...
f5 {[%clk 0:00:16.9]} 32. Nxf5 {[%clk 0:00:38.6]} 32... Kd7 {[%clk 0:00:17.5]}
33. Ng7 {[%clk 0:00:32.4]} 33... Bg8 {[%clk 0:00:14.5]} 34. Qf5+ {[%clk
0:00:32.4]} 34... Kc7 {[%clk 0:00:15.5]} 35. Qxg5 {[%clk 0:00:28.6]} 35... Rd8
{[%clk 0:00:08.7]} 36. Rb3 {[%clk 0:00:18.1]} 36... Qd7 {[%clk 0:00:05]} 37. Qe3
{[%clk 0:00:16.5]} 37... Kc6 {[%clk 0:00:03.6]} 38. Nh5 {[%clk 0:00:16.6]} 38...
Rxa7 {[%clk 0:00:04.2]} 39. Rab1 {[%clk 0:00:17.1]} 39... Qc7 {[%clk 0:00:02.9]}
40. Nf4 {[%clk 0:00:17.3]} 1-0